fUSD/lending_fUSD_20240217
["ID","MTS","AMOUNT","RATE_DAILY","PERIOD"]
[314268124,1708131041312,-677.91,0.00049589,120]
[314268125,1708131041321,-500.0,0.00049589,2]
[314268126,1708131041331,-500.0,0.00049589,60]
[314268127,1708131041340,-736.38,0.00049589,60]
[314268128,1708131041349,-500.0,0.00049589,60]
[314268129,1708131041358,-500.0,0.00049589,60]
[314268130,1708131041367,-500.0,0.00049589,60]
[314268131,1708131041377,-429.33499834,0.00049589,60]
[314268132,1708131041386,-500.0,0.00049589,60]
[314268133,1708131041395,-500.0,0.00049589,60]
[314268134,1708131041407,-500.0,0.00049589,60]
[314268135,1708131041416,-500.0,0.00049589,60]
[314268136,1708131041425,-150.0,0.00049589,60]
[314268137,1708131041434,-500.0,0.00049589,60]
[314268138,1708131041443,-500.0,0.00049589,2]
[314268139,1708131041452,-500.0,0.00049589,60]
[314268140,1708131041461,-500.0,0.00049589,60]
[314268141,1708131041470,-344.87140212,0.00049589,60]
[314268142,1708131041480,-500.0,0.00049589,2]
[314268143,1708131041489,-500.0,0.00049589,60]
[314268144,1708131041498,-500.0,0.00049589,60]
[314268145,1708131041508,-427.86900938,0.00049589,60]
[314268146,1708131041517,-500.0,0.00049589,60]
[314268147,1708131041526,-500.0,0.00049589,2]
[314268148,1708131041536,-500.0,0.00049589,7]
[314268149,1708131041545,-500.0,0.00049589,60]
[314268150,1708131041554,-500.0,0.00049589,60]
[314268151,1708131041563,-1950.56,0.00049589,60]
[314268152,1708131041572,-500.0,0.00049589,60]
[314268153,1708131041582,-211.34,0.00049589,60]
[314268154,1708131041590,-500.0,0.00049589,60]
[314268155,1708131041599,-500.0,0.00049589,60]
[314268156,1708131041609,-500.0,0.00049589,60]
[314268157,1708131041618,-500.0,0.00049589,60]
[314268158,1708131041627,-342.1,0.00049589,60]
[314268159,1708131041636,-500.0,0.00049589,60]
[314268160,1708131041645,-500.0,0.00049589,60]
[314268161,1708131041654,-500.0,0.00049589,60]
[314268162,1708131041663,-1028.22,0.00049589,60]
[314268163,1708131041672,-500.0,0.00049589,60]
[314268164,1708131041681,-500.0,0.00049589,60]
[314268165,1708131041690,-617.78,0.00049589,60]
[314268166,1708131041699,-792.42,0.00049589,14]
[314268167,1708131041708,-342.33967578,0.00049589,60]
[314268168,1708131041718,-500.0,0.00049589,60]
[314268169,1708131041727,-500.0,0.00049589,60]
[314268170,1708131041736,-2467.15,0.00049589,60]
[314268171,1708131041745,-500.0,0.00049589,60]
[314268172,1708131041756,-500.0,0.00049589,60]
[314268173,1708131041765,-500.0,0.00049589,60]
[314268174,1708131041775,-534.54,0.00049589,60]
[314268175,1708131041785,-500.0,0.00049589,60]
[314268176,1708131041794,-500.0,0.00049589,60]
[314268177,1708131041804,-359.56013848,0.00049589,60]
[314268178,1708131041813,-500.0,0.00049589,60]
[314268179,1708131041822,-747.86,0.00049589,2]
[314268180,1708131041831,-500.0,0.00049589,60]
[314268181,1708131041840,-500.0,0.00049589,60]
[314268182,1708131041850,-500.0,0.00049589,60]
[314268183,1708131041859,-500.0,0.00049589,60]
[314268184,1708131041868,-500.0,0.00049589,60]
[314268185,1708131041880,-500.0,0.00049589,60]
[314268186,1708131041890,-500.0,0.00049589,60]
[314268188,1708131041899,-500.0,0.00049589,60]
[314268190,1708131041909,-500.0,0.00049589,60]
[314268192,1708131041918,-602.38,0.00049589,60]
[314268193,1708131041927,-500.0,0.00049589,60]
[314268195,1708131041936,-500.0,0.00049589,60]
[314268197,1708131041946,-1714.77,0.00049589,60]
[314268199,1708131041955,-500.0,0.00049589,60]
[314268202,1708131041964,-500.0,0.00049589,60]
[314268204,1708131041974,-500.0,0.00049589,60]
[314268206,1708131041983,-500.0,0.00049589,60]
[314268208,1708131041992,-500.0,0.00049589,60]
[314268210,1708131042002,-676.18,0.00049589,60]
[314268211,1708131042011,-1450.49,0.00049589,60]
[314268213,1708131042020,-500.0,0.00049589,60]
[314268215,1708131042030,-915.9,0.00049589,60]
[314268217,1708131042040,-500.0,0.00049589,60]
[314268219,1708131042049,-500.0,0.00049589,60]
[314268221,1708131042059,-500.0,0.00049589,60]
[314268223,1708131042068,-517.42546106,0.00049589,60]
[314268225,1708131042077,-500.0,0.00049589,60]
[314268227,1708131042087,-500.0,0.00049589,60]
[314268228,1708131042096,-500.0,0.00049589,60]
[314268231,1708131042106,-802.55,0.00049589,60]
[314268232,1708131042115,-500.0,0.00049589,60]
[314268233,1708131042124,-862.82,0.00049589,60]
[314268234,1708131042133,-680.86,0.00049589,60]
[314268235,1708131042142,-500.0,0.00049589,60]
[314268236,1708131042151,-500.0,0.00049589,60]
[314268237,1708131042161,-500.0,0.00049589,60]
[314268238,1708131042170,-150.72,0.00049589,60]
[314268239,1708131042180,-500.0,0.00049589,60]
[314268240,1708131042188,-500.0,0.00049589,60]
[314268241,1708131042198,-500.0,0.00049589,60]
[314268242,1708131042207,-500.0,0.00049589,60]
[314268243,1708131042216,-500.0,0.00049589,60]
[314268244,1708131042225,-581.35936622,0.00049589,60]
[314268245,1708131042234,-500.0,0.00049589,60]
[314268246,1708131042243,-500.0,0.00049589,60]
[314268247,1708131042252,-500.0,0.00049589,60]
[314268248,1708131042260,-1066.03,0.00049589,60]
[314268249,1708131042270,-500.0,0.00049589,60]
[314268250,1708131042279,-500.0,0.00049589,60]
[314268251,1708131042288,-500.0,0.00049589,60]
[314268252,1708131042297,-500.0,0.00049589,60]
[314268253,1708131042306,-500.0,0.00049589,60]
[314268254,1708131042316,-224.32,0.00049589,60]
[314268255,1708131042325,-500.0,0.00049589,60]
[314268256,1708131042336,-843.26,0.00049589,60]
[314268257,1708131042344,-500.0,0.00049589,60]
[314268258,1708131042354,-745.61,0.00049589,60]
[314268259,1708131042363,-500.0,0.00049589,60]
[314268260,1708131042372,-1277.06,0.00049589,60]
[314268261,1708131042381,-500.0,0.00049589,60]
[314268262,1708131042391,-500.0,0.00049589,60]
[314268263,1708131042401,-500.0,0.00049589,60]
[314268264,1708131042413,-500.0,0.00049589,60]
[314268265,1708131042425,-500.0,0.00049589,60]
[314268266,1708131042434,-840.59,0.00049589,60]
[314268267,1708131042443,-500.0,0.00049589,60]
[314268268,1708131042452,-500.0,0.00049589,60]
[314268269,1708131042462,-500.0,0.00049589,60]
[314268270,1708131042471,-500.0,0.00049589,60]
[314268271,1708131042482,-3180.68,0.00049589,60]
[314268272,1708131042491,-8098.93,0.00049589,60]
[314268273,1708131042501,-500.0,0.00049589,60]
[314268274,1708131042511,-500.0,0.00049589,60]
[314268275,1708131042520,-500.0,0.00049589,60]
[314268276,1708131042530,-500.0,0.00049589,60]
[314268277,1708131042539,-3674.72,0.00049589,60]
[314268278,1708131042548,-529.5717738,0.00049589,60]
[314268279,1708131042557,-500.0,0.00049589,60]
[314268280,1708131042567,-500.0,0.00049589,60]
[314268281,1708131042579,-500.0,0.00049589,60]
[314268282,1708131042588,-500.0,0.00049589,60]
[314268283,1708131042597,-500.0,0.00049589,60]
[314268284,1708131042606,-662.41,0.00049589,60]
[314268285,1708131042615,-500.0,0.00049589,60]
[314268286,1708131042624,-500.0,0.00049589,60]
[314268287,1708131042633,-190.35,0.00049589,60]
[314268288,1708131042642,-1394.02915863,0.0004966,5]
[314268289,1708131042651,-150.0,0.00049738,2]
[314268290,1708131042660,-5000.0,0.00049763,7]
[314268291,1708131042669,-500.0,0.00049813,14]
[314268292,1708131042678,-1918.4,0.00049829,117]
[314268293,1708131042687,-82088.0192203,0.00049853,11]
[314268294,1708131042697,-500.0,0.00049863,60]
[314268295,1708131042706,-500.0,0.00049863,60]
[314268296,1708131042715,-500.0,0.00049863,60]
[314268297,1708131042724,-500.0,0.00049863,60]
[314268298,1708131042733,-500.0,0.00049863,2]
[314268299,1708131042743,-500.0,0.00049863,60]
[314268300,1708131042754,-677.91,0.00049863,120]
[314268301,1708131042764,-500.0,0.00049863,2]
[314268302,1708131042773,-500.0,0.00049863,60]
[314268303,1708131042783,-736.38,0.00049863,60]
[314268304,1708131042792,-500.0,0.00049863,60]
[314268305,1708131042801,-500.0,0.00049863,60]
[314268306,1708131042810,-473.2,0.00049863,60]
[314268307,1708131042820,-500.0,0.00049863,60]
[314268308,1708131042829,-189.9,0.00049863,60]
[314268309,1708131042839,-500.0,0.00049863,60]
[314268310,1708131042849,-500.0,0.00049863,60]
[314268311,1708131042858,-150.0,0.00049863,60]
[314268312,1708131042868,-500.0,0.00049863,60]
[314268313,1708131042877,-500.0,0.00049863,2]
[314268314,1708131042886,-500.0,0.00049863,60]
[314268315,1708131042896,-500.0,0.00049863,60]
[314268316,1708131042905,-500.0,0.00049863,2]
[314268317,1708131042914,-500.0,0.00049863,60]
[314268318,1708131042924,-500.0,0.00049863,60]
[314268319,1708131042933,-500.0,0.00049863,60]
[314268320,1708131042942,-500.0,0.00049863,2]
[314268321,1708131042951,-500.0,0.00049863,7]
[314268322,1708131042960,-500.0,0.00049863,60]
[314268323,1708131042969,-500.0,0.00049863,60]
[314268324,1708131042978,-1950.56,0.00049863,60]
[314268325,1708131042988,-500.0,0.00049863,60]
[314268326,1708131042997,-537.48577808,0.00049863,60]
[314268327,1708131043006,-500.0,0.00049863,60]
[314268328,1708131043017,-265.9555678,0.00049863,60]
[314268329,1708131043026,-500.0,0.00049863,60]
[314268331,1708131043036,-500.0,0.00049863,60]
[314268332,1708131043045,-500.0,0.00049863,60]
[314268333,1708131043054,-500.0,0.00049863,60]
[314268334,1708131043063,-1028.22,0.00049863,60]
[314268335,1708131043073,-500.0,0.00049863,60]
[314268336,1708131043082,-551.7,0.00049863,60]
[314268337,1708131043092,-792.42,0.00049863,14]
[314268338,1708131043101,-617.78,0.00049863,60]
[314268339,1708131043111,-500.0,0.00049863,60]
[314268340,1708131043120,-500.0,0.00049863,60]
[314268341,1708131043130,-2467.15,0.00049863,60]
[314268342,1708131043139,-500.0,0.00049863,60]
[314268343,1708131043148,-500.0,0.00049863,60]
[314268344,1708131043157,-500.0,0.00049863,60]
[314268345,1708131043167,-534.54,0.00049863,60]
[314268346,1708131043177,-500.0,0.00049863,60]
[314268348,1708131043186,-500.0,0.00049863,60]
[314268350,1708131043195,-500.0,0.00049863,60]
[314268352,1708131043204,-747.86,0.00049863,2]
[314268353,1708131043213,-500.0,0.00049863,60]
[314268354,1708131043222,-500.0,0.00049863,60]
[314268355,1708131043231,-500.0,0.00049863,60]
[314268356,1708131043240,-500.0,0.00049863,60]
[314268357,1708131043250,-500.0,0.00049863,60]
[314268358,1708131043259,-500.0,0.00049863,60]
[314268359,1708131043269,-500.0,0.00049863,60]
[314268360,1708131043278,-602.38,0.00049863,60]
[314268361,1708131043288,-500.0,0.00049863,60]
[314268362,1708131043317,-500.0,0.00049863,60]
[314268363,1708131043326,-1714.77,0.00049863,60]
[314268364,1708131043335,-500.0,0.00049863,60]
[314268365,1708131043345,-500.0,0.00049863,60]
[314268366,1708131043354,-500.0,0.00049863,60]
[314268367,1708131043363,-500.0,0.00049863,60]
[314268368,1708131043372,-676.18,0.00049863,60]
[314268369,1708131043382,-1450.49,0.00049863,60]
[314268370,1708131043391,-500.0,0.00049863,60]
[314268371,1708131043401,-915.9,0.00049863,60]
[314268372,1708131043412,-500.0,0.00049863,60]
[314268373,1708131043422,-500.0,0.00049863,60]
[314268374,1708131043430,-500.0,0.00049863,60]
[314268375,1708131043439,-500.0,0.00049863,60]
[314268376,1708131043449,-500.0,0.00049863,60]
[314268377,1708131043458,-500.0,0.00049863,60]
[314268378,1708131043467,-802.55,0.00049863,60]
[314268379,1708131043476,-500.0,0.00049863,60]
[314268380,1708131043487,-862.82,0.00049863,60]
[314268381,1708131043497,-680.86,0.00049863,60]
[314268382,1708131043506,-500.0,0.00049863,60]
[314268383,1708131043515,-500.0,0.00049863,60]
[314268384,1708131043524,-500.0,0.00049863,60]
[314268385,1708131043534,-500.0,0.00049863,60]
[314268386,1708131043543,-500.0,0.00049863,60]
[314268387,1708131043552,-500.0,0.00049863,60]
[314268388,1708131043561,-500.0,0.00049863,60]
[314268389,1708131043571,-500.0,0.00049863,60]
[314268390,1708131043581,-500.0,0.00049863,60]
[314268391,1708131043590,-500.0,0.00049863,60]
[314268392,1708131043599,-1066.03,0.00049863,60]
[314268393,1708131043742,-500.0,0.00049863,60]
[314268394,1708131043751,-500.0,0.00049863,60]
[314268395,1708131043762,-507.4,0.00049863,60]
[314268396,1708131043772,-500.0,0.00049863,60]
[314268397,1708131043781,-500.0,0.00049863,60]
[314268398,1708131043791,-843.26,0.00049863,60]
[314268399,1708131043800,-745.61,0.00049863,60]
[314268400,1708131043809,-1277.06,0.00049863,60]
[314268401,1708131043818,-500.0,0.00049863,60]
[314268402,1708131043827,-500.0,0.00049863,60]
[314268403,1708131043836,-500.0,0.00049863,60]
[314268404,1708131043846,-500.0,0.00049863,60]
[314268405,1708131043855,-500.0,0.00049863,60]
[314268406,1708131043864,-840.59,0.00049863,60]
[314268407,1708131043873,-500.0,0.00049863,60]
[314268408,1708131043883,-500.0,0.00049863,60]
[314268409,1708131043892,-500.0,0.00049863,60]
[314268410,1708131043901,-500.0,0.00049863,60]
[314268411,1708131043911,-3180.68,0.00049863,60]
[314268412,1708131043920,-8098.93,0.00049863,60]
[314268413,1708131043930,-500.0,0.00049863,60]
[314268414,1708131043939,-500.0,0.00049863,60]
[314268415,1708131043948,-500.0,0.00049863,60]
[314268416,1708131043957,-339.63,0.00049863,60]
[314268417,1708131043967,-3674.72,0.00049863,60]
[314268418,1708131043976,-500.0,0.00049863,60]
[314268419,1708131043985,-500.0,0.00049863,60]
[314268420,1708131043995,-500.0,0.00049863,60]
[314268421,1708131044004,-500.0,0.00049863,60]
[314268422,1708131044013,-500.0,0.00049863,60]
[314268423,1708131044022,-662.41,0.00049863,60]
[314268424,1708131044032,-500.0,0.00049863,60]
[314268425,1708131044041,-226.47,0.00049863,60]
[314268426,1708131044051,-463.27,0.00049892,120]
[314268427,1708131044060,-222.0,0.00049898,4]
[314268428,1708131044069,-250.0,0.0004999,2]
[314268429,1708131044079,-441.42399052,0.0005,5]
[314268430,1708131044087,-9525.90178476,0.0005,15]
[314268431,1708131044097,-28059.0,0.0005,10]
[314268432,1708131044107,-2000.0,0.0005,50]
[314268433,1708131044117,-152.66873982,0.00050035,44]
[314268434,1708131044127,-500.0,0.00050062,14]
[314268435,1708131044136,-169.0674913,0.000501,39]
[314268436,1708131044145,-82088.0192203,0.00050126,11]
[314268437,1708131044154,-388.46952824,0.00050135,30]
[314268438,1708131044163,-500.0,0.00050136,60]
[314268439,1708131044172,-500.0,0.00050136,60]
[314268440,1708131044182,-500.0,0.00050136,60]
[314268441,1708131044191,-500.0,0.00050136,60]
[314268442,1708131044201,-500.0,0.00050136,2]
[314268443,1708131044210,-500.0,0.00050136,60]
[314268444,1708131044219,-677.91,0.00050136,120]
[314268445,1708131044228,-500.0,0.00050136,2]
[314268446,1708131044237,-500.0,0.00050136,60]
[314268447,1708131044246,-736.38,0.00050136,60]
[314268448,1708131044255,-500.0,0.00050136,60]
[314268449,1708131044264,-500.0,0.00050136,60]
[314268450,1708131044273,-500.0,0.00050136,60]
[314268451,1708131044283,-434.13,0.00050136,60]
[314268452,1708131044293,-200.5,0.00050136,60]
[314268453,1708131044302,-173.37,0.00050136,60]
[314268454,1708131044310,-500.0,0.00050136,60]
[314268455,1708131044319,-500.0,0.00050136,2]
[314268456,1708131044329,-500.0,0.00050136,60]
[314268457,1708131044338,-500.0,0.00050136,60]
[314268458,1708131044347,-212.02,0.00050136,2]
[314268459,1708131044356,-578.94783174,0.00050136,60]
[314268460,1708131044365,-500.0,0.00050136,60]
[314268461,1708131044374,-500.0,0.00050136,60]
[314268462,1708131044383,-500.0,0.00050136,2]
[314268463,1708131044392,-500.0,0.00050136,7]
[314268464,1708131044402,-500.0,0.00050136,60]
[314268465,1708131044412,-500.0,0.00050136,60]
[314268466,1708131044422,-1950.56,0.00050136,60]
[314268467,1708131044431,-500.0,0.00050136,60]
[314268468,1708131044440,-500.0,0.00050136,60]
[314268469,1708131044450,-500.0,0.00050136,60]
[314268470,1708131044459,-500.0,0.00050136,60]
[314268471,1708131044468,-500.0,0.00050136,60]
[314268472,1708131044478,-500.0,0.00050136,60]
[314268473,1708131044487,-1028.22,0.00050136,60]
[314268474,1708131044497,-500.0,0.00050136,60]
[314268475,1708131044506,-617.78,0.00050136,60]
[314268476,1708131044515,-792.42,0.00050136,14]
[314268477,1708131044525,-500.0,0.00050136,60]
[314268478,1708131044534,-537.14,0.00050136,60]
[314268479,1708131044543,-2467.15,0.00050136,60]
[314268480,1708131044553,-500.0,0.00050136,60]
[314268481,1708131044562,-500.0,0.00050136,60]
[314268482,1708131044571,-500.0,0.00050136,60]
[314268483,1708131044580,-534.54,0.00050136,60]
[314268484,1708131044590,-500.0,0.00050136,60]
[314268485,1708131044599,-349.17,0.00050136,60]
[314268486,1708131044608,-644.09,0.00050136,60]
[314268487,1708131044617,-747.86,0.00050136,2]
[314268488,1708131044626,-500.0,0.00050136,60]
[314268489,1708131044636,-500.0,0.00050136,60]
[314268490,1708131044645,-500.0,0.00050136,60]
[314268491,1708131044654,-500.0,0.00050136,60]
[314268492,1708131044663,-500.0,0.00050136,60]
[314268493,1708131044672,-500.0,0.00050136,60]
[314268494,1708131044681,-500.0,0.00050136,60]
[314268495,1708131044690,-500.0,0.00050136,60]
[314268496,1708131044700,-602.38,0.00050136,60]
[314268497,1708131044709,-500.0,0.00050136,60]
[314268498,1708131044718,-1714.77,0.00050136,60]
[314268499,1708131044727,-500.0,0.00050136,60]
[314268500,1708131044736,-500.0,0.00050136,60]
[314268501,1708131044745,-500.0,0.00050136,60]
[314268502,1708131044754,-500.0,0.00050136,60]
[314268503,1708131044764,-676.18,0.00050136,60]
[314268504,1708131044773,-1450.49,0.00050136,60]
[314268505,1708131044783,-500.0,0.00050136,60]
[314268506,1708131044792,-915.9,0.00050136,60]
[314268507,1708131044801,-500.0,0.00050136,60]
[314268508,1708131044811,-500.0,0.00050136,60]
[314268509,1708131044819,-500.0,0.00050136,60]
[314268510,1708131044829,-500.0,0.00050136,60]
[314268511,1708131044838,-500.0,0.00050136,60]
[314268512,1708131044847,-500.0,0.00050136,60]
[314268513,1708131044856,-802.55,0.00050136,60]
[314268514,1708131044865,-500.0,0.00050136,60]
[314268515,1708131044874,-862.82,0.00050136,60]
[314268516,1708131044884,-680.86,0.00050136,60]
[314268517,1708131044894,-500.0,0.00050136,60]
[314268518,1708131044903,-500.0,0.00050136,60]
[314268519,1708131044912,-500.0,0.00050136,60]
[314268520,1708131044921,-500.0,0.00050136,60]
[314268521,1708131044930,-500.0,0.00050136,60]
[314268522,1708131044939,-500.0,0.00050136,60]
[314268523,1708131044948,-500.0,0.00050136,60]
[314268524,1708131044957,-500.0,0.00050136,60]
[314268525,1708131044966,-500.0,0.00050136,60]
[314268526,1708131044975,-500.0,0.00050136,60]
[314268527,1708131044984,-1066.03,0.00050136,60]
[314268528,1708131044993,-500.0,0.00050136,60]
[314268529,1708131045002,-500.0,0.00050136,60]
[314268530,1708131045011,-509.7690238,0.00050136,60]
[314268531,1708131045020,-500.0,0.00050136,60]
[314268532,1708131045029,-843.26,0.00050136,60]
[314268533,1708131045039,-745.61,0.00050136,60]
[314268534,1708131045048,-1277.06,0.00050136,60]
[314268535,1708131045057,-500.0,0.00050136,60]
[314268536,1708131045066,-500.0,0.00050136,60]
[314268537,1708131045075,-500.0,0.00050136,60]
[314268538,1708131045084,-408.49,0.00050136,60]
[314268539,1708131045093,-500.0,0.00050136,60]
[314268540,1708131045102,-840.59,0.00050136,60]
[314268541,1708131045111,-483.15,0.00050136,60]
[314268542,1708131045120,-500.0,0.00050136,60]
[314268543,1708131045130,-500.0,0.00050136,60]
[314268544,1708131045139,-500.0,0.00050136,60]
[314268545,1708131045147,-3180.68,0.00050136,60]
[314268546,1708131045157,-8098.93,0.00050136,60]
[314268547,1708131045166,-500.0,0.00050136,60]
[314268548,1708131045175,-500.0,0.00050136,60]
[314268549,1708131045184,-500.0,0.00050136,60]
[314268550,1708131045193,-3674.72,0.00050136,60]
[314268551,1708131045202,-500.0,0.00050136,60]
[314268552,1708131045210,-500.0,0.00050136,60]
[314268553,1708131045219,-500.0,0.00050136,60]
[314268554,1708131045228,-500.0,0.00050136,60]
[314268555,1708131045237,-500.0,0.00050136,60]
[314268556,1708131045246,-662.41,0.00050136,60]
[314268557,1708131045255,-346.49,0.00050136,60]
[314268558,1708131045264,-8767.64025164,0.000502,120]
[314268559,1708131045273,-8767.64025162,0.000502,120]
[314268560,1708131045282,-8767.64025162,0.000502,120]
[314268561,1708131045302,-8767.64025162,0.000502,120]
[314268562,1708131045311,-8767.64025162,0.000502,120]
[314268563,1708131045320,-8767.64025162,0.000502,120]
[314268564,1708131045329,-8767.64025162,0.000502,120]
[314268565,1708131045339,-8767.64025162,0.000502,120]
[314268566,1708131045347,-8767.64025162,0.000502,120]
[314268567,1708131045356,-8767.64025162,0.000502,120]
[314268568,1708131045365,-8767.64025162,0.000502,120]
[314268569,1708131045374,-8767.64025162,0.000502,120]
[314268570,1708131045383,-8767.64025162,0.000502,120]
[314268571,1708131045391,-8767.64025162,0.000502,120]
[314268572,1708131045401,-8767.64025162,0.000502,120]
[314268573,1708131045411,-250.0,0.00050264,2]
[314268574,1708131045420,-326.23455361,0.00050271,2]
[314268575,1708131045430,-526.24164145,0.00050273,11]
[314268576,1708131045439,-1048.69937975,0.00050273,11]
[314268577,1708131045449,-285.49656662,0.00050286,2]
[314268578,1708131045458,-500.0,0.00050311,14]
[314268579,1708131045467,-1935.7361904,0.00050335,27]
[314268580,1708131045476,-500.0,0.0005041,60]
[314268581,1708131045486,-500.0,0.0005041,60]
[314268582,1708131045496,-500.0,0.0005041,60]
[314268583,1708131045505,-500.0,0.0005041,60]
[314268584,1708131045514,-500.0,0.0005041,2]
[314268585,1708131045524,-500.0,0.0005041,60]
[314268586,1708131045533,-677.91,0.0005041,120]
[314268587,1708131045542,-500.0,0.0005041,2]
[314268588,1708131045551,-500.0,0.0005041,60]
[314268589,1708131045560,-736.38,0.0005041,60]
[314268590,1708131045569,-161.03,0.0005041,60]
[314268591,1708131045578,-500.0,0.0005041,60]
[314268592,1708131045587,-500.0,0.0005041,60]
[314268593,1708131045596,-500.0,0.0005041,2]
[314268594,1708131045605,-500.0,0.0005041,60]
[314268595,1708131045614,-500.0,0.0005041,60]
[314268596,1708131045623,-500.0,0.0005041,60]
[314268597,1708131045633,-500.0,0.0005041,60]
[314268598,1708131045642,-500.0,0.0005041,2]
[314268599,1708131045651,-500.0,0.0005041,7]
[314268600,1708131045660,-500.0,0.0005041,60]
[314268601,1708131045669,-500.0,0.0005041,60]
[314268602,1708131045679,-1950.56,0.0005041,60]
[314268603,1708131045688,-500.0,0.0005041,60]
[314268604,1708131045697,-500.0,0.0005041,60]
[314268605,1708131045706,-500.0,0.0005041,60]
[314268606,1708131045715,-176.85014817,0.0005041,60]
[314268607,1708131045724,-500.0,0.0005041,60]
[314268608,1708131045733,-500.0,0.0005041,60]
[314268609,1708131045743,-1028.22,0.0005041,60]
[314268610,1708131045752,-500.0,0.0005041,60]
[314268611,1708131045762,-617.78,0.0005041,60]
[314268612,1708131045771,-792.42,0.0005041,14]
[314268613,1708131045781,-500.0,0.0005041,60]
[314268614,1708131045791,-2467.15,0.0005041,60]
[314268615,1708131045801,-500.0,0.0005041,60]
[314268616,1708131045810,-500.0,0.0005041,60]
[314268617,1708131045819,-500.0,0.0005041,60]
[314268618,1708131045828,-534.54,0.0005041,60]
[314268619,1708131045837,-500.0,0.0005041,60]
[314268620,1708131045846,-747.86,0.0005041,2]
[314268621,1708131045855,-500.0,0.0005041,60]
[314268622,1708131045864,-500.0,0.0005041,60]
[314268623,1708131045874,-500.0,0.0005041,60]
[314268624,1708131045883,-500.0,0.0005041,60]
[314268625,1708131045892,-500.0,0.0005041,60]
[314268626,1708131045901,-500.0,0.0005041,60]
[314268627,1708131045911,-500.0,0.0005041,60]
[314268628,1708131045920,-602.38,0.0005041,60]
[314268629,1708131045930,-500.0,0.0005041,60]
[314268630,1708131045939,-184.20885452,0.0005041,60]
[314268631,1708131045948,-1714.77,0.0005041,60]
[314268632,1708131045957,-500.0,0.0005041,60]
[314268633,1708131045967,-500.0,0.0005041,60]
[314268634,1708131045976,-500.0,0.0005041,60]
[314268635,1708131045985,-500.0,0.0005041,60]
[314268636,1708131045993,-676.18,0.0005041,60]
[314268637,1708131046003,-1450.49,0.0005041,60]
[314268638,1708131046012,-500.0,0.0005041,60]
[314268639,1708131046021,-915.9,0.0005041,60]
[314268640,1708131046030,-500.0,0.0005041,60]
[314268641,1708131046040,-500.0,0.0005041,60]
[314268642,1708131046050,-589.1919176,0.0005041,60]
[314268643,1708131046059,-344.39,0.0005041,60]
[314268644,1708131046068,-500.0,0.0005041,60]
[314268645,1708131046077,-500.0,0.0005041,60]
[314268646,1708131046087,-802.55,0.0005041,60]
[314268647,1708131046096,-500.0,0.0005041,60]
[314268648,1708131046106,-862.82,0.0005041,60]
[314268649,1708131046115,-680.86,0.0005041,60]